fUSD/lending_fUSD_20250211
["ID","MTS","AMOUNT","RATE_DAILY","PERIOD"]
[352683908,1739239859440,-245.627561,0.00011369,2]
[352683909,1739239859449,-500.0,0.00011369,2]
[352683910,1739239859458,-500.0,0.00011369,2]
[352683911,1739239859467,-614.72,0.00011369,2]
[352683912,1739239859475,-1112.64,0.00011369,2]
[352683913,1739239859485,-872.5,0.00011369,2]
[352683914,1739239859494,-712.33,0.00011369,2]
[352683915,1739239859503,-500.0,0.00011369,2]
[352683916,1739239859512,-500.0,0.00011369,2]
[352683917,1739239859521,-526.11,0.00011369,2]
[352683918,1739239859530,-515.43,0.00011369,2]
[352683919,1739239859539,-791.92,0.00011369,2]
[352683920,1739239859548,-500.0,0.00011369,2]
[352683921,1739239859557,-500.0,0.00011369,2]
[352683922,1739239859566,-762.06,0.00011369,2]
[352683923,1739239859575,-500.0,0.00011369,2]
[352683924,1739239859584,-500.0,0.00011369,2]
[352683925,1739239859593,-500.0,0.00011369,2]
[352683926,1739239859602,-519.18,0.00011369,2]
[352683927,1739239859611,-655.93,0.00011369,2]
[352683928,1739239859622,-500.0,0.00011369,2]
[352683929,1739239859632,-869.48,0.00011369,2]
[352683930,1739239859641,-500.0,0.00011369,2]
[352683931,1739239859650,-507.37619167,0.00011369,2]
[352683932,1739239859660,-500.0,0.00011369,2]
[352683933,1739239859669,-683.85,0.00011369,2]
[352683934,1739239859678,-506.60384941,0.00011369,2]
[352683935,1739239859687,-500.0,0.00011369,2]
[352683936,1739239859696,-793.23,0.00011369,2]
[352683937,1739239859706,-902.29,0.00011369,2]
[352683938,1739239859715,-722.45,0.00011369,2]
[352683939,1739239859724,-500.0,0.00011369,2]
[352683940,1739239859733,-752.96,0.00011369,2]
[352683941,1739239859743,-602.39,0.00011369,2]
[352683942,1739239859752,-510.37,0.00011369,2]
[352683943,1739239859761,-500.0,0.00011369,2]
[352683944,1739239859769,-691.5,0.00011369,2]
[352683945,1739239859777,-500.0,0.00011369,2]
[352683946,1739239859786,-500.0,0.00011369,2]
[352683947,1739239859796,-655.55,0.00011369,2]
[352683948,1739239859804,-500.0,0.00011369,2]
[352683949,1739239859814,-500.0,0.00011369,2]
[352683950,1739239859823,-500.0,0.00011369,2]
[352683951,1739239859832,-1221.62,0.00011369,2]
[352683952,1739239859841,-598.34,0.00011369,2]
[352683953,1739239859850,-500.0,0.00011369,2]
[352683954,1739239859859,-603.01,0.00011369,2]
[352683955,1739239859868,-695.47,0.00011369,2]
[352683956,1739239859878,-500.0,0.00011369,2]
[352683957,1739239859886,-1036.72,0.00011369,2]
[352683958,1739239859896,-599.42,0.00011369,2]
[352683959,1739239859905,-500.0,0.00011369,2]
[352683960,1739239859914,-500.0,0.00011369,2]
[352683961,1739239859924,-605.74,0.00011369,2]
[352683962,1739239859934,-500.0,0.00011369,2]
[352683963,1739239859943,-754.445923,0.00011369,2]
[352683964,1739239859952,-500.0,0.00011369,2]
[352683965,1739239859961,-667.45,0.00011369,2]
[352683966,1739239859969,-500.0,0.00011369,2]
[352683967,1739239859978,-557.46,0.00011369,2]
[352683968,1739239859987,-500.0,0.00011369,2]
[352683969,1739239859997,-766.45,0.00011369,2]
[352683970,1739239860006,-500.0,0.00011369,2]
[352683971,1739239860015,-500.0,0.00011369,2]
[352683972,1739239860024,-500.0,0.00011369,2]
[352683973,1739239860035,-500.0,0.00011369,2]
[352683974,1739239860044,-500.0,0.00011369,2]
[352683975,1739239860053,-595.51,0.00011369,2]
[352683976,1739239860063,-500.0,0.00011369,2]
[352683977,1739239860073,-826.07,0.00011369,2]
[352683978,1739239860083,-800.51,0.00011369,2]
[352683979,1739239860092,-500.0,0.00011369,2]
[352683980,1739239860101,-522.87,0.00011369,2]
[352683981,1739239860110,-747.14,0.00011369,2]
[352683982,1739239860120,-500.0,0.00011369,2]
[352683983,1739239860130,-500.0,0.00011369,2]
[352683984,1739239860142,-716.756791,0.00011369,2]
[352683985,1739239860151,-1049.85,0.00011369,2]
[352683986,1739239860160,-781.08,0.00011369,2]
[352683987,1739239860169,-648.97,0.00011369,2]
[352683988,1739239860179,-620.01,0.00011369,2]
[352683989,1739239860187,-532.29,0.00011369,2]
[352683990,1739239860197,-909.7,0.00011369,2]
[352683991,1739239860207,-500.0,0.00011369,2]
[352683992,1739239860218,-540.28,0.00011369,2]
[352683993,1739239860228,-542.34,0.00011369,2]
[352683994,1739239860237,-500.0,0.00011369,2]
[352683995,1739239860246,-500.0,0.00011369,2]
[352683996,1739239860256,-500.0,0.00011369,2]
[352683997,1739239860265,-711.46,0.00011369,2]
[352683998,1739239860274,-626.11,0.00011369,2]
[352683999,1739239860283,-500.0,0.00011369,2]
[352684000,1739239860293,-909.99,0.00011369,2]
[352684001,1739239860301,-500.0,0.00011369,2]
[352684002,1739239860309,-500.0,0.00011369,2]
[352684003,1739239860318,-500.0,0.00011369,2]
[352684004,1739239860327,-500.0,0.00011369,2]
[352684005,1739239860337,-667.64,0.00011369,2]
[352684006,1739239860346,-668.38,0.00011369,2]
[352684007,1739239860355,-500.0,0.00011369,2]
[352684008,1739239860364,-597.22,0.00011369,2]
[352684009,1739239860375,-841.26,0.00011369,2]
[352684010,1739239860384,-500.0,0.00011369,2]
[352684011,1739239860393,-877.64,0.00011369,2]
[352684012,1739239860402,-539.91,0.00011369,2]
[352684013,1739239860411,-1171.05,0.00011369,2]
[352684014,1739239860420,-500.0,0.00011369,2]
[352684015,1739239860429,-500.0,0.00011369,2]
[352684016,1739239860438,-660.76,0.00011369,2]
[352684017,1739239860447,-513.68408725,0.00011369,2]
[352684018,1739239860456,-810.86,0.00011369,2]
[352684019,1739239860465,-977.01,0.00011369,2]
[352684020,1739239860475,-774.94,0.00011369,2]
[352684021,1739239860483,-500.0,0.00011369,2]
[352684022,1739239860493,-500.0,0.00011369,2]
[352684023,1739239860502,-801.49,0.00011369,2]
[352684024,1739239860511,-870.08,0.00011369,2]
[352684025,1739239860520,-928.41,0.00011369,2]
[352684026,1739239860528,-780.27,0.00011369,2]
[352684027,1739239860538,-500.0,0.00011369,2]
[352684028,1739239860547,-670.46,0.00011369,2]
[352684029,1739239860556,-570.65,0.00011369,2]
[352684030,1739239860566,-923.64,0.00011369,2]
[352684031,1739239860575,-936.13,0.00011369,2]
[352684032,1739239860583,-500.0,0.00011369,2]
[352684033,1739239860592,-772.05,0.00011369,2]
[352684034,1739239860602,-500.0,0.00011369,2]
[352684035,1739239860611,-500.0,0.00011369,2]
[352684036,1739239860622,-500.0,0.00011369,2]
[352684037,1739239860631,-687.67,0.00011369,2]
[352684038,1739239860640,-500.0,0.00011369,2]
[352684039,1739239860649,-608.12,0.00011369,2]
[352684040,1739239860658,-500.0,0.00011369,2]
[352684041,1739239860667,-1035.15,0.00011369,2]
[352684042,1739239860677,-697.46,0.00011369,2]
[352684043,1739239860686,-1683.49,0.00011369,2]
[352684044,1739239860694,-500.0,0.00011369,2]
[352684045,1739239860703,-500.0,0.00011369,2]
[352684046,1739239860712,-1251.13,0.00011369,2]
[352684047,1739239860721,-600.45088498,0.00011369,2]
[352684048,1739239860731,-509.2434174,0.00011369,2]
[352684049,1739239860740,-500.0,0.00011369,2]
[352684050,1739239860750,-902.17,0.00011369,2]
[352684051,1739239860760,-966.41,0.00011369,2]
[352684052,1739239860769,-1344.99,0.00011369,2]
[352684053,1739239860779,-738.21,0.00011369,2]
[352684054,1739239860788,-500.0,0.00011369,2]
[352684055,1739239860797,-968.05,0.00011369,2]
[352684056,1739239860806,-615.05,0.00011369,2]
[352684057,1739239860815,-558.36,0.00011369,2]
[352684058,1739239860824,-1441.61,0.00011369,2]
[352684059,1739239860833,-916.86,0.00011369,2]
[352684060,1739239860843,-1114.86,0.00011369,2]
[352684061,1739239860852,-812.7,0.00011369,2]
[352684062,1739239860861,-776.91,0.00011369,2]
[352684063,1739239860871,-631.36,0.00011369,2]
[352684064,1739239860880,-500.0,0.00011369,2]
[352684065,1739239860889,-1136.09,0.00011369,2]
[352684066,1739239860899,-564.78,0.00011369,2]
[352684067,1739239860909,-500.0,0.00011369,2]
[352684068,1739239860918,-500.0,0.00011369,2]
[352684069,1739239860927,-1110.0,0.00011369,2]
[352684070,1739239860937,-1024.02,0.00011369,2]
[352684071,1739239860946,-500.0,0.00011369,2]
[352684072,1739239860956,-766.22,0.00011369,2]
[352684073,1739239860965,-534.64,0.00011369,2]
[352684074,1739239860975,-500.0,0.00011369,2]
[352684075,1739239860984,-1011.7,0.00011369,2]
[352684076,1739239860994,-500.0,0.00011369,2]
[352684077,1739239861003,-713.1,0.00011369,2]
[352684078,1739239861012,-509.01,0.00011369,2]
[352684079,1739239861021,-886.49,0.00011369,2]
[352684080,1739239861030,-500.0,0.00011369,2]
[352684081,1739239861039,-1418.71,0.00011369,2]
[352684082,1739239861048,-967.13,0.00011369,2]
[352684083,1739239861057,-1326.11,0.00011369,2]
[352684084,1739239861066,-717.65,0.00011369,2]
[352684085,1739239861075,-500.0,0.00011369,2]
[352684086,1739239861085,-1368.25,0.00011369,2]
[352684087,1739239861094,-1594.61,0.00011369,2]
[352684088,1739239861107,-1262.32,0.00011369,2]
[352684089,1739239861117,-500.0,0.00011369,2]
[352684090,1739239861126,-836.92,0.00011369,2]
[352684091,1739239861137,-548.21,0.00011369,2]
[352684092,1739239861147,-596.19,0.00011369,2]
[352684093,1739239861156,-986.42,0.00011369,2]
[352684094,1739239861165,-961.34,0.00011369,2]
[352684095,1739239861173,-919.78,0.00011369,2]
[352684096,1739239861185,-1512.82,0.00011369,2]
[352684097,1739239861194,-565.99,0.00011369,2]
[352684098,1739239861203,-898.19,0.00011369,2]
[352684099,1739239861212,-1032.6,0.00011369,2]
[352684100,1739239861223,-611.37,0.00011369,2]
[352684101,1739239861232,-1825.12,0.00011369,2]
[352684102,1739239861242,-710.26,0.00011369,2]
[352684103,1739239861251,-1017.52,0.00011369,2]
[352684104,1739239861260,-735.7,0.00011369,2]
[352684105,1739239861269,-2147.49,0.00011369,2]
[352684106,1739239861279,-500.0,0.00011369,2]
[352684107,1739239861289,-766.06,0.00011369,2]
[352684108,1739239861299,-500.0,0.00011369,2]
[352684109,1739239861308,-824.51,0.00011369,2]
[352684110,1739239861318,-1265.6,0.00011369,2]
[352684111,1739239861327,-974.47,0.00011369,2]
[352684112,1739239861336,-500.0,0.00011369,2]
[352684113,1739239861345,-900.48,0.00011369,2]
[352684114,1739239861355,-1551.42,0.00011369,2]
[352684115,1739239861364,-618.93,0.00011369,2]
[352684116,1739239861378,-500.0,0.00011369,2]
[352684117,1739239861387,-2529.71,0.00011369,2]
[352684118,1739239861398,-2807.47,0.00011369,2]
[352684119,1739239861408,-1841.85,0.00011369,2]
[352684120,1739239861417,-1082.36,0.00011369,2]
[352684121,1739239861427,-1000.71,0.00011369,2]
[352684122,1739239861436,-1355.7,0.00011369,2]
[352684123,1739239861445,-1440.2,0.00011369,2]
[352684124,1739239861454,-785.84,0.00011369,2]
[352684125,1739239861463,-1747.42,0.00011369,2]
[352684126,1739239861472,-6540.7,0.00011369,2]
[352684127,1739239861481,-403.67511298,0.00011369,2]
[352684128,1739239861490,-1672.04,0.00011369,2]
[352684129,1739239861500,-1414.71,0.00011369,2]
[352684130,1739239861509,-509.77008172,0.00011369,2]
[352684131,1739239861518,-500.0,0.00011369,2]
[352684132,1739239861527,-1164.75,0.00011369,2]
[352684133,1739239861537,-973.31,0.00011369,2]
[352684134,1739239861546,-1286.61,0.00011369,2]
[352684135,1739239861555,-1255.55,0.00011369,2]
[352684136,1739239861564,-577.1,0.00011369,2]
[352684137,1739239861574,-500.0,0.00011369,2]
[352684138,1739239861583,-1447.41,0.00011369,2]
[352684139,1739239861592,-654.66,0.00011369,2]
[352684140,1739239861602,-736.48,0.00011369,2]
[352684141,1739239861612,-781.21,0.00011369,2]
[352684142,1739239861624,-3007.04,0.00011369,2]
[352684143,1739239861633,-500.0,0.00011369,2]
[352684144,1739239861643,-1262.37,0.00011369,2]
[352684145,1739239861653,-1889.51,0.00011369,2]
[352684146,1739239861663,-2591.86,0.00011369,2]
[352684147,1739239861672,-597.68,0.00011369,2]
[352684148,1739239861682,-500.0,0.00011369,2]
[352684149,1739239861692,-842.56,0.00011369,2]
[352684150,1739239861702,-2415.71,0.00011369,2]
[352684151,1739239861712,-796.24,0.00011369,2]
[352684152,1739239861721,-500.0,0.00011369,2]
[352684153,1739239861731,-2075.93,0.00011369,2]
[352684154,1739239861741,-500.0,0.00011369,2]
[352684155,1739239861751,-1266.61,0.00011369,2]
[352684156,1739239861762,-1587.87,0.00011369,2]
[352684157,1739239861772,-739.96,0.00011369,2]
[352684158,1739239861782,-2583.79,0.00011369,2]
[352684159,1739239861792,-912.28,0.00011369,2]
[352684160,1739239861803,-619.77,0.00011369,2]
[352684161,1739239861813,-3369.39,0.00011369,2]
[352684162,1739239861823,-500.0,0.00011369,2]
[352684163,1739239861832,-1111.0,0.00011369,2]
[352684164,1739239861842,-594.61,0.00011369,2]
[352684165,1739239861852,-1870.15,0.00011369,2]
[352684166,1739239861861,-1031.27,0.00011369,2]
[352684167,1739239861873,-505.97434466,0.00011369,2]
[352684168,1739239861882,-500.0,0.00011369,2]
[352684169,1739239861892,-500.0,0.00011369,2]
[352684170,1739239861902,-500.0,0.00011369,2]
[352684171,1739239861912,-1111.42,0.00011369,2]
[352684172,1739239861921,-1552.44,0.00011369,2]
[352684173,1739239861931,-1451.55,0.00011369,2]
[352684174,1739239861940,-1139.43,0.00011369,2]
[352684175,1739239861950,-500.0,0.00011369,2]
[352684176,1739239861960,-2889.12,0.00011369,2]
[352684177,1739239861969,-500.0,0.00011369,2]
[352684178,1739239861978,-500.0,0.00011369,2]
[352684179,1739239861988,-1701.99,0.00011369,2]
[352684180,1739239861997,-696.31,0.00011369,2]
[352684181,1739239862007,-1389.47,0.00011369,2]
[352684182,1739239862017,-781.85,0.00011369,2]
[352684183,1739239862026,-1279.04,0.00011369,2]
[352684184,1739239862036,-1114.47,0.00011369,2]
[352684185,1739239862046,-1131.75,0.00011369,2]
[352684186,1739239862056,-500.0,0.00011369,2]
[352684187,1739239862065,-769.55,0.00011369,2]
[352684188,1739239862074,-1767.0,0.00011369,2]
[352684189,1739239862084,-1651.62,0.00011369,2]
[352684190,1739239862094,-1341.96,0.00011369,2]
[352684191,1739239862103,-542.76724862,0.00011369,2]
[352684192,1739239862112,-1049.44,0.00011369,2]
[352684193,1739239862123,-2727.41,0.00011369,2]
[352684194,1739239862133,-500.0,0.00011369,2]
[352684195,1739239862144,-512.65781865,0.00011369,2]
[352684196,1739239862154,-500.0,0.00011369,2]
[352684197,1739239862163,-155.94515964,0.0001137,2]
[352684198,1739239862173,-256.27222446,0.00011387,2]
[352684199,1739239862183,-214.60004883,0.00011405,2]
[352684200,1739239862192,-1036.83,0.0001141,2]
[352684201,1739239862201,-899.0,0.0001141,2]
[352684202,1739239862212,-1844.54,0.0001141,2]
[352684203,1739239862223,-1057.64,0.0001141,2]
[352684204,1739239862232,-1325.74,0.0001141,2]
[352684205,1739239862242,-4853.42,0.0001141,2]
[352684206,1739239862251,-687.2,0.0001141,2]
[352684207,1739239862260,-1195.47,0.0001141,2]
[352684208,1739239862270,-802.72,0.0001141,2]
[352684209,1739239862280,-751.02,0.0001141,2]
[352684210,1739239862290,-1519.98,0.0001141,2]
[352684211,1739239862299,-500.0,0.0001141,2]
[352684212,1739239862309,-1459.2,0.0001141,2]
[352684213,1739239862317,-1561.0,0.0001141,2]
[352684214,1739239862326,-1372.6,0.0001141,2]
[352684215,1739239862335,-957.36,0.0001141,2]
[352684216,1739239862345,-1391.38,0.0001141,2]
[352684217,1739239862354,-3394.91,0.0001141,2]
[352684218,1739239862363,-4913.78,0.0001141,2]
[352684219,1739239862375,-795.35,0.0001141,2]
[352684220,1739239862384,-1258.82,0.0001141,2]
[352684221,1739239862393,-928.56,0.0001141,2]
[352684222,1739239862403,-500.0,0.0001141,2]
[352684223,1739239862413,-500.0,0.0001141,2]
[352684224,1739239862423,-1000.0,0.00011428,2]
[352684225,1739239862432,-207.0,0.0001144,2]
[352684226,1739239862442,-151.0,0.00011443,2]
[352684227,1739239862451,-3113.14656079,0.00011445,2]
[352684228,1739239862461,-155.94515964,0.00011452,2]
[352684229,1739239862470,-152.0,0.00011453,3]
[352684230,1739239862480,-249.6787556,0.00011498,2]
[352684231,1739239862489,-1555.7381083,0.00011498,2]
[352684232,1739239862499,-6208.1388962,0.00011498,2]
[352684233,1739239862508,-1304.76444,0.00011498,2]
[352684234,1739239862518,-500.0,0.00011506,2]
[352684235,1739239862527,-500.0,0.00011506,2]
[352684236,1739239862537,-500.0,0.00011506,2]
[352684237,1739239862547,-605.21,0.00011506,2]
[352684238,1739239862557,-281.702304,0.00011506,2]
[352684239,1739239862566,-500.0,0.00011506,2]
[352684240,1739239862576,-500.0,0.00011506,2]
[352684241,1739239862586,-500.0,0.00011506,2]
[352684242,1739239862595,-500.0,0.00011506,2]
[352684243,1739239862604,-614.72,0.00011506,2]
[352684244,1739239862614,-1112.64,0.00011506,2]
[352684245,1739239862624,-872.5,0.00011506,2]
[352684246,1739239862633,-712.33,0.00011506,2]
[352684247,1739239862642,-500.0,0.00011506,2]
[352684248,1739239862652,-500.0,0.00011506,2]
[352684249,1739239862661,-515.43,0.00011506,2]
[352684250,1739239862671,-526.11,0.00011506,2]
[352684251,1739239862681,-791.92,0.00011506,2]
[352684252,1739239862691,-536.50854119,0.00011506,2]
[352684253,1739239862700,-500.0,0.00011506,2]
[352684254,1739239862710,-762.06,0.00011506,2]
[352684255,1739239862720,-500.0,0.00011506,2]
[352684256,1739239862730,-500.0,0.00011506,2]
[352684257,1739239862739,-500.0,0.00011506,2]
[352684258,1739239862749,-519.18,0.00011506,2]
[352684259,1739239862758,-655.93,0.00011506,2]
[352684260,1739239862768,-500.0,0.00011506,2]
[352684261,1739239862777,-869.48,0.00011506,2]
[352684262,1739239862787,-500.0,0.00011506,2]
[352684263,1739239862796,-500.0,0.00011506,2]
[352684264,1739239862806,-683.85,0.00011506,2]
[352684265,1739239862816,-500.0,0.00011506,2]
[352684266,1739239862825,-793.23,0.00011506,2]
[352684267,1739239862835,-902.29,0.00011506,2]
[352684268,1739239862844,-722.45,0.00011506,2]
[352684269,1739239862854,-500.0,0.00011506,2]
[352684270,1739239862863,-752.96,0.00011506,2]
[352684271,1739239862875,-602.39,0.00011506,2]
[352684272,1739239862885,-510.37,0.00011506,2]
[352684273,1739239862894,-500.0,0.00011506,2]
[352684274,1739239862904,-691.5,0.00011506,2]
[352684275,1739239862914,-500.0,0.00011506,2]
[352684276,1739239862923,-500.0,0.00011506,2]
[352684277,1739239862932,-655.55,0.00011506,2]
[352684278,1739239862942,-500.0,0.00011506,2]
[352684279,1739239862952,-500.0,0.00011506,2]
[352684280,1739239862962,-500.0,0.00011506,2]
[352684281,1739239862971,-1221.62,0.00011506,2]
[352684282,1739239862981,-598.34,0.00011506,2]
[352684283,1739239862991,-500.0,0.00011506,2]
[352684284,1739239863000,-603.01,0.00011506,2]
[352684285,1739239863010,-695.47,0.00011506,2]
[352684286,1739239863020,-500.0,0.00011506,2]
[352684287,1739239863030,-1036.72,0.00011506,2]
[352684288,1739239863040,-599.42,0.00011506,2]
[352684289,1739239863051,-500.0,0.00011506,2]
[352684290,1739239863061,-500.0,0.00011506,2]
[352684291,1739239863072,-605.74,0.00011506,2]
[352684292,1739239863083,-500.0,0.00011506,2]
[352684293,1739239863092,-754.445923,0.00011506,2]
[352684294,1739239863102,-512.7264882,0.00011506,2]
[352684295,1739239863112,-667.45,0.00011506,2]
[352684296,1739239863123,-508.63783736,0.00011506,2]
[352684297,1739239863134,-557.46,0.00011506,2]
[352684298,1739239863147,-500.0,0.00011506,2]
[352684299,1739239863157,-766.45,0.00011506,2]
[352684300,1739239863167,-500.0,0.00011506,2]
[352684301,1739239863178,-500.0,0.00011506,2]
[352684302,1739239863188,-500.0,0.00011506,2]
[352684303,1739239863198,-537.94809401,0.00011506,2]
[352684304,1739239863207,-500.0,0.00011506,2]
[352684305,1739239863217,-595.51,0.00011506,2]
[352684306,1739239863227,-500.0,0.00011506,2]
[352684307,1739239863238,-826.07,0.00011506,2]
[352684308,1739239863248,-800.51,0.00011506,2]
[352684309,1739239863258,-500.0,0.00011506,2]
[352684310,1739239863267,-522.87,0.00011506,2]
[352684311,1739239863277,-747.14,0.00011506,2]
[352684312,1739239863287,-500.0,0.00011506,2]
[352684313,1739239863298,-500.0,0.00011506,2]
[352684314,1739239863311,-716.756791,0.00011506,2]
[352684315,1739239863331,-1049.85,0.00011506,2]
[352684316,1739239863349,-781.08,0.00011506,2]
[352684317,1739239863359,-648.97,0.00011506,2]
[352684318,1739239863369,-620.01,0.00011506,2]
[352684319,1739239863379,-532.29,0.00011506,2]
[352684320,1739239863390,-909.7,0.00011506,2]
[352684321,1739239863400,-500.0,0.00011506,2]
[352684322,1739239863410,-540.28,0.00011506,2]
[352684323,1739239863420,-542.34,0.00011506,2]
[352684324,1739239863429,-500.0,0.00011506,2]
[352684325,1739239863439,-500.0,0.00011506,2]
[352684326,1739239863449,-299.98642978,0.00011506,2]
[352684327,1739239863459,-711.46,0.00011506,2]
[352684328,1739239863468,-626.11,0.00011506,2]
[352684329,1739239863478,-500.0,0.00011506,2]
[352684330,1739239863487,-909.99,0.00011506,2]
[352684331,1739239863497,-500.0,0.00011506,2]
[352684332,1739239863507,-500.0,0.00011506,2]
[352684333,1739239863516,-500.0,0.00011506,2]
[352684334,1739239863526,-500.0,0.00011506,2]
[352684335,1739239863535,-667.64,0.00011506,2]
[352684336,1739239863545,-668.38,0.00011506,2]
[352684337,1739239863554,-500.0,0.00011506,2]
[352684338,1739239863564,-597.22,0.00011506,2]
[352684339,1739239863574,-841.26,0.00011506,2]
[352684340,1739239863584,-500.0,0.00011506,2]
[352684341,1739239863593,-877.64,0.00011506,2]
[352684342,1739239863603,-539.91,0.00011506,2]
[352684343,1739239863613,-1171.05,0.00011506,2]
[352684344,1739239863624,-500.0,0.00011506,2]
[352684345,1739239863634,-500.0,0.00011506,2]
[352684346,1739239863644,-660.76,0.00011506,2]
[352684347,1739239863654,-810.86,0.00011506,2]
[352684348,1739239863663,-977.01,0.00011506,2]
[352684349,1739239863673,-774.94,0.00011506,2]
[352684350,1739239863683,-500.0,0.00011506,2]
[352684351,1739239863692,-500.0,0.00011506,2]
[352684352,1739239863702,-801.49,0.00011506,2]
[352684353,1739239863711,-870.08,0.00011506,2]
[352684354,1739239863721,-928.41,0.00011506,2]
[352684355,1739239863731,-780.27,0.00011506,2]
[352684356,1739239863741,-500.0,0.00011506,2]
[352684357,1739239863751,-670.46,0.00011506,2]
[352684358,1739239863762,-570.65,0.00011506,2]
[352684359,1739239863773,-923.64,0.00011506,2]
[352684360,1739239863784,-936.13,0.00011506,2]
[352684361,1739239863795,-500.0,0.00011506,2]
[352684362,1739239863805,-772.05,0.00011506,2]
[352684363,1739239863816,-500.0,0.00011506,2]
[352684364,1739239863827,-500.0,0.00011506,2]
[352684365,1739239863838,-500.0,0.00011506,2]
[352684366,1739239863849,-687.67,0.00011506,2]
[352684367,1739239863859,-500.0,0.00011506,2]
[352684368,1739239864096,-608.12,0.00011506,2]
[352684369,1739239864117,-500.0,0.00011506,2]
[352684370,1739239864130,-1035.15,0.00011506,2]
[352684371,1739239864143,-697.46,0.00011506,2]
[352684372,1739239864153,-1683.49,0.00011506,2]
[352684373,1739239864164,-500.0,0.00011506,2]
[352684374,1739239864174,-500.0,0.00011506,2]
[352684375,1739239864184,-1251.13,0.00011506,2]
[352684376,1739239864194,-500.0,0.00011506,2]
[352684377,1739239864204,-902.17,0.00011506,2]
[352684378,1739239864214,-966.41,0.00011506,2]
[352684379,1739239864224,-1344.99,0.00011506,2]
[352684380,1739239864234,-738.21,0.00011506,2]
[352684381,1739239864243,-500.0,0.00011506,2]
[352684382,1739239864253,-968.05,0.00011506,2]
[352684383,1739239864263,-615.05,0.00011506,2]
[352684384,1739239864272,-558.36,0.00011506,2]
[352684385,1739239864282,-1441.61,0.00011506,2]
[352684386,1739239864291,-916.86,0.00011506,2]
[352684387,1739239864301,-1114.86,0.00011506,2]
[352684388,1739239864311,-812.7,0.00011506,2]
[352684389,1739239864320,-776.91,0.00011506,2]
[352684390,1739239864330,-631.36,0.00011506,2]
[352684391,1739239864340,-500.0,0.00011506,2]
[352684392,1739239864349,-1136.09,0.00011506,2]
[352684393,1739239864359,-564.78,0.00011506,2]
[352684394,1739239864368,-500.0,0.00011506,2]
[352684395,1739239864379,-500.0,0.00011506,2]
[352684396,1739239864389,-1110.0,0.00011506,2]
[352684397,1739239864398,-1024.02,0.00011506,2]
[352684398,1739239864408,-500.0,0.00011506,2]
[352684399,1739239864418,-766.22,0.00011506,2]
[352684400,1739239864428,-534.64,0.00011506,2]
[352684401,1739239864438,-500.0,0.00011506,2]
[352684402,1739239864447,-1011.7,0.00011506,2]
[352684403,1739239864457,-500.0,0.00011506,2]
[352684404,1739239864467,-713.1,0.00011506,2]
[352684405,1739239864478,-509.01,0.00011506,2]
[352684406,1739239864487,-886.49,0.00011506,2]
[352684407,1739239864497,-500.0,0.00011506,2]